bitfinex/quotes_ETHUSD_20250715
["timestamp","ask_amount","ask_price","bid_price","bid_amount"]
[1752602239784,6.22214799,3092.8,3092.4,0.002]
[1752602239987,0.4295,3092.7,3092.4,0.002]
[1752602240390,9.0260385,3092.8,3092.4,0.002]
[1752602240692,0.8037,3092.5,3092.4,0.002]
[1752602241792,6.55954799,3092.8,3092.4,3.23573431]
[1752602241993,0.6559548,3092.7,3092.4,3.23573431]
[1752602242587,0.6559548,3092.7,3092.5,3.23359317]
[1752602243097,0.7669,3092.8,3092.5,3.23362974]
[1752602243266,0.1616,3092.7,3092.4,3.23572038]
[1752602243467,0.1616,3092.7,3092.6,3.23352518]
[1752602243880,0.1616,3092.7,3092.4,0.002]
[1752602244182,0.1616,3092.6,3092.4,0.002]
[1752602244490,0.1616,3092.6,3092.5,3.23362974]
[1752602244915,0.001,3093.1,3093.0,3.78310701]
[1752602245065,0.001,3093.1,3093.0,4.24740701]
[1752602245268,0.001,3093.1,3093.0,4.44133808]
[1752602245689,0.001,3093.1,3093.0,5.19393808]
[1752602246308,0.1616,3093.9,3093.8,3.23227099]
[1752602246872,0.1616,3093.9,3093.7,3.23235944]
[1752602247301,0.1616,3093.9,3093.6,3.23244099]
[1752602247480,0.1616,3093.9,3093.5,3.23254142]
[1752602247679,0.1616,3093.9,3093.6,3.23245556]
[1752602248209,1.1983,3094.2,3093.4,0.24520774]
[1752602248380,0.1616,3093.4,3093.0,3.23310701]
[1752602248582,0.1616,3093.1,3092.8,3.23331608]
[1752602248783,0.1616,3093.1,3093.0,3.23310701]
[1752602249011,0.1616,3093.3,3092.9,0.49663211]
[1752602249185,0.771,3094.3,3094.0,3.23205123]
[1752602249388,0.771,3094.3,3094.2,3.23185314]
[1752602249711,0.1608,3094.2,3094.1,3.23193876]
[1752602249907,0.1616,3094.1,3093.9,3.232122]
[1752602250082,0.1616,3094.1,3094.0,3.23206205]
[1752602250330,0.1616,3094.1,3093.9,3.23213596]
[1752602250647,0.1616,3094.1,3094.0,3.69636205]
[1752602250851,0.1616,3094.1,3094.0,3.23206205]
[1752602251969,0.1616,3094.1,3094.0,3.69636205]
[1752602252666,0.1618,3094.4,3094.3,3.23174869]
[1752602253475,0.1618,3094.4,3093.8,0.24518348]
[1752602253476,0.7701,3094.3,3093.8,0.24518348]
[1752602253688,0.7701,3094.3,3093.8,3.23225423]
[1752602253832,0.1616,3093.9,3093.8,3.23225423]
[1752602254038,0.1616,3093.9,3093.8,3.69655423]
[1752602254336,0.1608,3094.3,3094.2,3.23185314]
[1752602254553,0.001,3094.4,3094.3,3.23174869]
[1752602254767,0.1618,3094.4,3093.9,0.7116]
[1752602254941,0.001,3094.4,3093.8,0.24469939]
[1752602255281,0.001,3094.4,3094.2,3.23185314]
[1752602255487,0.1608,3094.1,3093.8,0.0323227]
[1752602255779,0.1616,3093.7,3093.6,3.23239845]
[1752602255946,0.1616,3093.7,3093.6,3.69669845]
[1752602256265,0.001,3094.4,3093.6,3.69669845]
[1752602256266,0.001,3094.4,3094.1,3.23188414]
[1752602256464,0.001,3094.4,3093.9,3.23207195]
[1752602256636,0.1616,3094.1,3094.0,3.23206205]
[1752602257253,0.1616,3094.1,3094.0,3.69636205]
[1752602257651,0.1618,3094.4,3094.3,3.23174869]
[1752602257852,0.001,3094.4,3094.3,3.23174869]
[1752602258056,0.001,3094.4,3094.3,3.69604869]
[1752602258535,0.001,3094.4,3094.3,5.76803619]
[1752602258740,0.001,3094.4,3094.3,5.92883619]
[1752602259068,1e-08,3094.4,3094.3,8.92883619]
[1752602259250,1e-08,3094.4,3094.3,8.89651871]
[1752602259651,1e-08,3094.4,3094.3,5.66477002]
[1752602259845,1e-08,3094.4,3094.3,5.6970875]
[1752602260045,1e-08,3094.4,3094.3,8.92883619]
[1752602260276,1e-08,3094.4,3094.3,8.89651871]
[1752602261034,1e-08,3094.4,3094.3,4.17334869]
[1752602261241,1e-08,3094.4,3094.3,9.53666617]
[1752602261441,1e-08,3094.4,3094.3,9.50434869]
[1752602261668,1e-08,3094.4,3094.3,9.96864869]
[1752602263475,1e-08,3094.4,3094.3,10.51864869]
[1752602263675,1e-08,3094.4,3094.3,11.89369871]
[1752602263877,1e-08,3094.4,3094.3,11.89069871]
[1752602267090,1e-08,3094.4,3094.3,6.56269871]
[1752602267244,1e-08,3094.4,3094.3,3.23174869]
[1752602267602,1e-08,3094.4,3094.2,3.23179773]
[1752602267744,0.46260001,3094.4,3094.1,3.23190447]
[1752602267940,0.1608,3094.2,3094.1,3.23190447]
[1752602268486,0.6234,3094.2,3093.6,0.24137691]
[1752602268691,0.7968,3094.1,3094.0,3.23206205]
[1752602268846,1e-08,3094.4,3093.8,0.0323227]
[1752602269043,0.1608,3094.2,3094.1,3.23195759]
[1752602271256,0.6234,3094.2,3094.1,3.23195759]
[1752602271460,0.1608,3094.2,3094.1,3.23195759]
[1752602272583,0.8269,3094.1,3093.6,0.23852934]
[1752602272793,0.4626,3094.0,3093.5,3.23251619]
[1752602272968,4.05887013,3094.1,3093.2,5.322]
[1752602272969,0.1616,3093.5,3093.2,5.322]
[1752602273367,0.1616,3093.5,3093.0,0.002]
[1752602273368,0.1616,3093.5,3093.1,0.03233002]
[1752602273570,0.1616,3093.5,3093.2,3.23281163]
[1752602273789,0.1616,3093.5,3093.1,5.35433002]
[1752602273969,0.1616,3093.5,3093.4,3.23268895]
[1752602275267,0.7657,3093.4,3093.1,0.23813257]
[1752602275470,0.7657,3093.4,3093.0,8.557031]
[1752602275755,0.1616,3093.1,3093.0,0.002]
[1752602275986,0.1616,3093.1,3093.0,3.23510701]
[1752602276597,3.85720248,3093.1,3093.0,0.002]
[1752602276771,0.6242,3093.1,3093.0,0.002]
[1752602277095,0.1616,3093.1,3093.0,0.002]
[1752602277661,0.1616,3093.1,3093.0,3.23510701]
[1752602277862,0.1616,3093.1,3093.0,0.002]
[1752602278087,0.1616,3093.1,3093.0,3.23510701]
[1752602278300,0.1616,3093.1,3093.0,0.002]
[1752602278519,0.1616,3093.1,3093.0,3.23510701]
[1752602280167,0.1616,3093.1,3093.0,0.002]
[1752602280784,0.1616,3093.1,3093.0,3.23510701]
[1752602281713,0.1616,3093.1,3093.0,3.08310701]
[1752602282217,0.7657,3093.4,3093.3,3.23279345]
[1752602282422,0.9273,3093.4,3093.3,3.23279345]
[1752602282792,0.1616,3093.4,3093.3,3.23279345]
[1752602283433,0.7881,3093.8,3093.2,3.23289536]
[1752602283434,0.7881,3093.8,3093.4,3.23258497]
[1752602283723,0.1616,3093.6,3093.2,3.23283825]
[1752602284016,0.6242,3093.6,3093.5,3.23258445]
[1752602284318,0.1616,3093.6,3093.5,3.23258445]
[1752602285233,0.9497,3093.8,3093.7,3.23237547]
[1752602285912,0.1616,3093.8,3093.7,3.23237547]
[1752602286837,0.1616,3094.0,3093.9,3.23209605]
[1752602287693,0.1616,3094.0,3093.5,0.1616]
[1752602287898,0.1616,3093.8,3093.6,5.314]
[1752602288196,0.6242,3093.8,3093.5,3.23257594]
[1752602288501,0.6242,3093.8,3093.6,3.23247345]
[1752602289140,0.6242,3093.8,3093.7,3.23237547]
[1752602289341,0.6242,3093.8,3093.6,3.23241592]
[1752602289724,0.6242,3093.8,3093.7,3.23237547]
[1752602289923,0.1616,3093.8,3093.7,3.23237547]
[1752602290136,0.1616,3093.8,3093.6,3.23245436]
[1752602290353,0.1616,3093.8,3093.7,3.23237547]
[1752602294051,0.8316,3094.3,3094.0,3.23201506]
[1752602294361,0.1616,3094.1,3094.0,3.23201506]
[1752602294569,0.1616,3094.1,3093.9,3.23211491]
[1752602294914,0.1616,3094.1,3093.8,3.23223643]
[1752602295163,0.1616,3094.1,3093.9,3.23208948]
[1752602295750,0.1616,3094.1,3094.0,3.23206205]
[1752602296051,0.1616,3094.1,3093.9,3.2321232]
[1752602296264,0.6359,3094.1,3093.8,3.23224274]
[1752602296734,0.4743,3094.0,3093.8,3.23224274]
[1752602297143,0.1616,3094.1,3093.8,3.23224274]
[1752602298024,0.94422612,3094.1,3093.5,8.5405465]
[1752602298228,0.1616,3093.8,3093.6,3.23247995]
[1752602298643,0.1616,3093.8,3093.7,3.23237547]
[1752602298970,0.1116,3093.8,3093.7,3.23237547]
[1752602303162,0.763,3093.7,3093.2,3.23283617]
[1752602303375,1e-08,3094.4,3093.6,3.23241533]
[1752602303376,0.763,3094.1,3093.6,3.23241533]
[1752602303527,0.92121619,3094.0,3093.6,3.23241533]
[1752602303866,0.1616,3093.6,3093.4,3.23264533]
[1752602304070,0.1616,3093.5,3093.2,3.23279675]
[1752602304268,0.1616,3093.5,3093.3,3.23277392]
[1752602304680,0.1616,3093.5,3093.4,3.23268895]
[1752602306880,0.001,3093.8,3093.6,3.23243499]
[1752602307088,0.1616,3093.7,3093.2,0.03232897]
[1752602307266,0.4743,3093.7,3093.4,3.23268895]
[1752602307460,0.1616,3093.5,3093.4,3.23268895]
[1752602310278,0.001,3093.8,3093.7,3.23237547]
[1752602310499,0.1626,3093.8,3093.7,3.23237547]
[1752602310855,0.001,3093.8,3093.7,15.45119006]
[1752602311060,1e-08,3094.4,3094.3,3.23174869]
[1752602311256,1e-08,3094.4,3094.3,19.61631835]
[1752602311461,1e-08,3094.4,3094.3,21.03071835]
[1752602311661,1e-08,3094.4,3094.3,22.32709555]
[1752602314260,0.1618,3095.1,3094.3,25.32709555]
[1752602314460,0.15813273,3095.1,3095.0,3.23101777]
[1752602317763,0.15813273,3095.1,3095.0,3.47852947]
[1752602317958,0.15813273,3095.1,3095.0,3.92012947]
[1752602318777,0.15813273,3095.1,3095.0,3.47852947]
[1752602319573,0.001,3095.7,3095.6,3.23039152]
[1752602319806,0.001,3095.7,3095.6,8.99529543]
[1752602319988,0.001,3095.7,3095.6,8.96299152]
[1752602320571,0.001,3095.7,3095.6,9.51299152]
[1752602320775,1e-08,3095.7,3095.6,12.51299152]
[1752602321002,0.4743,3097.1,3096.2,3.77976551]
[1752602321203,0.813,3097.0,3096.2,19.63763282]
[1752602321425,0.813,3097.0,3096.2,20.04693517]
[1752602321591,1e-08,3096.3,3096.2,23.04693517]
[1752602322032,0.813,3097.3,3096.7,10.53656966]
[1752602322231,0.813,3097.3,3097.2,3.22872271]
[1752602322379,0.4743,3097.7,3097.2,3.22872271]
[1752602322380,0.7683,3097.6,3097.2,3.22872271]
[1752602322574,1.2426,3097.6,3097.2,3.22872271]
[1752602322904,0.7683,3097.6,3097.2,8.51670456]
[1752602323087,0.7948,3097.9,3097.4,3.22845171]
[1752602323293,0.7948,3097.9,3097.5,8.99025474]
[1752602323588,0.7897,3098.2,3097.5,5.7296]
[1752602323817,4.01742598,3098.2,3097.5,8.9579235]
[1752602324127,0.72450161,3098.1,3097.5,5.7296]
[1752602324282,3.95228989,3098.1,3097.5,8.54865565]
[1752602324475,3.95228989,3098.1,3097.5,8.51637155]
[1752602324704,0.72450161,3098.1,3097.6,3.22828838]
[1752602325019,0.72450161,3098.1,3097.2,0.68105093]
[1752602325020,3.22827268,3097.7,3097.2,0.23945093]
[1752602325186,0.4321,3098.0,3096.6,10.98396966]
[1752602325187,0.8329,3097.6,3096.6,10.98396966]
[1752602325393,0.90629129,3098.0,3097.1,0.7985]
[1752602325394,1.265,3098.0,3097.1,0.7985]
[1752602325592,0.8329,3098.0,3097.3,0.55]
[1752602325796,0.8329,3098.3,3097.9,3.22799315]
[1752602325980,0.8329,3098.3,3097.7,3.22810076]
[1752602325981,1.265,3098.3,3097.8,5.285]
[1752602326180,0.8329,3098.3,3097.9,3.2279828]
[1752602326385,0.8329,3098.3,3098.0,5.284]
[1752602327326,1.23893777,3098.3,3098.0,5.284]
[1752602327539,0.8329,3097.7,3097.1,0.2440007]
[1752602327689,3.22830578,3097.6,3097.1,0.2440007]
[1752602327884,0.8329,3097.7,3097.4,3.22842237]
[1752602328119,0.4321,3097.6,3097.1,0.24346779]
[1752602328423,0.4321,3097.5,3097.0,3.2288352]
[1752602328635,0.77216278,3097.5,3097.0,5.282]
[1752602328797,0.4321,3097.6,3097.0,5.282]
[1752602329186,0.8329,3097.7,3097.6,3.22830578]
[1752602329395,0.8329,3098.0,3097.3,0.03228618]
[1752602329616,0.1608,3097.7,3097.4,3.22850395]
[1752602329800,0.1608,3097.7,3097.5,3.22838014]
[1752602329997,0.1608,3097.7,3097.5,3.22839218]
[1752602330206,8.281,3098.5,3096.9,0.55]
[1752602330207,0.8011,3097.4,3097.1,3.22880724]
[1752602330437,0.8242,3097.7,3096.9,0.03229035]
[1752602330646,0.1608,3097.9,3097.4,0.55]
[1752602330844,0.1608,3097.9,3097.5,8.54060987]
[1752602331048,0.1608,3097.9,3097.6,0.4474]
[1752602331347,0.7576,3098.3,3097.3,0.9548]
[1752602331554,0.1608,3097.7,3097.3,0.1608]
[1752602331709,0.1608,3097.7,3097.3,5.4398]
[1752602332245,0.1608,3097.7,3097.3,8.66838994]
[1752602332545,0.1608,3097.7,3097.3,5.4398]
[1752602332726,0.1608,3097.7,3097.5,3.2283332]
[1752602333040,0.1608,3097.7,3097.3,5.4398]
[1752602333041,0.9571,3097.7,3097.3,0.1608]
[1752602333243,0.7963,3097.7,3097.6,3.22830578]
[1752602333432,0.1608,3097.9,3097.4,0.03228514]
[1752602333636,0.1608,3097.9,3097.6,0.55]
[1752602333841,0.1608,3098.1,3097.9,3.2278991]
[1752602334239,0.1608,3098.1,3097.8,3.22809735]
[1752602334445,0.1608,3098.1,3098.0,3.22788896]
[1752602334749,0.1608,3098.1,3097.9,3.227992]
[1752602334954,0.1608,3098.1,3098.0,3.22788896]
[1752602335728,0.1608,3098.1,3097.9,3.22795505]
[1752602336118,0.1608,3098.1,3097.8,3.22808183]
[1752602336438,0.1608,3097.9,3097.4,0.1608]
[1752602336640,0.1608,3097.9,3097.6,3.22830578]
[1752602336845,0.1608,3097.9,3097.5,5.277]
[1752602337026,0.1608,3097.9,3097.8,3.22801584]
[1752602337231,0.1608,3097.9,3097.5,5.3072841]
[1752602337420,0.1608,3097.9,3097.8,3.22809735]
[1752602337750,4.04757438,3097.8,3096.9,0.7828]
[1752602337950,0.42083744,3097.7,3097.3,3.22861533]
[1752602338158,0.1608,3097.5,3097.3,3.22861533]
[1752602338728,0.1608,3097.5,3097.4,3.22851423]
[1752602338930,0.1608,3097.7,3097.4,3.22841944]
[1752602339183,0.1608,3097.7,3097.1,5.8822]
[1752602339485,0.1608,3097.7,3097.3,3.22861582]
[1752602339764,6.22729414,3098.6,3096.8,3.4738142]
[1752602339765,0.1608,3097.1,3096.8,3.4738142]
[1752602339950,0.1608,3097.1,3096.8,0.24470318]
[1752602340134,0.1608,3097.0,3096.6,0.1608]
[1752602340332,0.1608,3097.0,3096.9,3.22903548]
[1752602340775,0.1608,3097.0,3096.8,3.22905607]
[1752602340931,0.1608,3097.0,3096.7,3.22921189]
[1752602340932,0.1608,3097.0,3096.7,3.22921065]
[1752602341248,0.1608,3097.0,3096.8,3.22913975]
[1752602341449,0.1608,3097.0,3096.9,3.22903548]
[1752602341837,0.8302,3097.6,3096.9,3.2612799]
[1752602342040,0.8302,3097.6,3097.3,3.22860357]
[1752602342242,0.1608,3097.3,3097.2,3.22869164]
[1752602343095,0.5929,3097.3,3096.9,8.501004]
[1752602343235,1.2623,3097.2,3096.8,3.46874967]
[1752602343434,0.5929,3097.1,3096.7,3.2291457]
[1752602343633,0.5929,3097.1,3096.6,5.271]
[1752602343892,0.5929,3097.1,3096.8,3.22910017]
[1752602344237,0.5929,3097.1,3096.8,0.24282483]
[1752602344589,0.5929,3097.1,3096.6,5.271]
[1752602344590,0.1608,3097.1,3096.7,3.22924403]
[1752602344742,0.5929,3097.1,3096.8,3.22908559]
[1752602344940,0.5929,3097.1,3097.0,3.22893122]
[1752602345166,0.1608,3097.1,3097.0,3.22893122]
[1752602347271,0.1608,3097.4,3097.3,3.22858815]
[1752602347670,0.5929,3097.4,3096.8,5.67291555]
[1752602347972,0.1608,3097.1,3096.8,0.24311555]
[1752602348217,1.2277,3097.3,3097.0,3.22885599]
[1752602348495,1.2277,3097.3,3096.1,3.77982854]
[1752602348496,0.7956,3096.8,3096.3,0.001]
[1752602348838,0.4321,3096.7,3096.3,0.001]
[1752602349039,0.7956,3096.8,3096.3,0.001]
[1752602349040,0.7956,3096.8,3096.5,3.22938368]
[1752602349338,0.7956,3096.8,3096.3,3.23056372]
[1752602349339,0.7956,3096.8,3096.7,3.22924403]
[1752602349572,0.7956,3097.1,3096.8,3.22909553]
[1752602349779,0.7956,3097.1,3096.5,0.24168617]
[1752602349984,0.7956,3097.4,3097.2,3.22864694]
[1752602350144,0.7956,3097.4,3096.8,5.29929139]
[1752602350452,0.7956,3097.4,3096.8,5.84166914]
[1752602350638,0.7956,3097.4,3096.8,5.267]
[1752602350838,5.267,3098.0,3096.8,5.267]
[1752602350839,0.8257,3097.8,3096.8,5.267]
[1752602351075,0.8257,3097.8,3096.9,0.03229035]
[1752602351254,1.2578,3097.8,3097.4,3.22845999]
[1752602351456,0.4321,3097.7,3097.3,3.22857354]
[1752602351671,0.2261,3097.7,3097.4,3.22851223]
[1752602351865,0.2261,3097.7,3097.3,3.22858516]
[1752602352070,0.2261,3097.7,3097.1,3.22874547]
[1752602352377,0.65408556,3097.7,3097.2,3.22862729]
[1752602352581,0.42798556,3097.7,3097.2,3.22866448]
[1752602352751,4.05384201,3097.8,3097.2,3.22866448]
[1752602353155,4.05384201,3097.8,3097.0,3.22891338]
[1752602353156,0.759,3097.6,3096.7,5.266]
[1752602353367,0.759,3097.6,3096.6,3.22934831]
[1752602353578,0.759,3097.6,3097.3,3.22856211]
[1752602353885,0.3613,3097.5,3096.8,0.03229139]
[1752602354092,0.3613,3097.5,3096.6,0.47969348]
[1752602354244,0.79616853,3097.5,3096.6,0.47969348]
[1752602354447,0.7845,3097.4,3096.9,3.22898857]
[1752602354668,0.3613,3097.3,3096.5,5.50949648]
[1752602354873,0.3613,3097.3,3096.8,3.22907671]
[1752602355381,0.3613,3097.3,3096.5,5.50949648]
[1752602355382,0.3613,3097.3,3096.9,3.22902257]
[1752602355984,0.3613,3097.2,3096.9,3.22902257]
[1752602356184,3.22822928,3097.7,3096.5,0.24449648]
[1752602356185,0.3613,3097.1,3096.5,0.24449648]
[1752602356366,4.40558079,3097.1,3096.5,3.22935812]
[1752602356573,4.40558079,3097.1,3096.3,8.9419619]
[1752602356574,1.1767,3097.1,3096.6,3.22933721]
[1752602356768,1.1767,3097.1,3096.5,0.24611611]
[1752602357003,1.1767,3097.1,3096.9,3.2289736]
[1752602357157,0.8154,3097.1,3096.9,3.22897408]
[1752602357358,0.8154,3097.1,3096.6,3.22929403]
[1752602357575,3.22925103,3096.7,3096.3,0.24503523]
[1752602357745,0.8133,3096.6,3096.3,3.23060482]
[1752602358281,1.1746,3096.6,3096.3,0.001]
[1752602358586,0.3613,3096.5,3096.3,0.001]
[1752602359679,0.8133,3096.6,3096.5,3.2294526]
[1752602359882,0.8133,3096.6,3096.4,3.22948798]
[1752602360085,0.1608,3096.4,3096.3,3.2306612]
[1752602361998,0.1608,3096.4,3096.3,0.001]
[1752602363787,0.1608,3096.4,3096.3,3.2306612]
[1752602365285,0.1608,3096.4,3096.3,3.6713612]
[1752602367484,0.1608,3096.4,3096.3,3.2306612]
[1752602368883,0.1608,3096.4,3096.3,0.001]
[1752602369320,0.1608,3096.4,3096.3,3.2306612]
[1752602369688,0.1608,3096.4,3096.3,0.001]
[1752602369886,1.3845,3096.4,3096.3,0.001]
[1752602370920,5.07544476,3096.4,3096.3,0.001]
[1752602371294,10.33044476,3096.4,3096.3,0.001]
[1752602375809,9.47463668,3096.4,3096.3,0.001]
[1752602376342,39.47463668,3096.4,3096.3,0.001]
[1752602376751,9.47163668,3096.4,3096.3,0.001]
[1752602378211,0.51707978,3096.4,3096.3,0.001]
[1752602378414,3.22912509,3096.9,3096.3,3.6713612]
[1752602378725,8.48121814,3096.8,3096.3,0.4417]
[1752602378925,6.0293,3096.8,3096.3,3.67132879]
[1752602379125,6.0293,3096.8,3096.3,0.4417]
[1752602379328,6.0293,3096.8,3096.3,3.67132495]
[1752602380352,6.0293,3096.8,3096.3,3.23061143]
[1752602380527,9.25844333,3096.8,3096.3,0.001]
[1752602380727,6.0293,3096.8,3096.3,3.67135099]
[1752602382512,6.0293,3096.8,3096.4,0.4407]
[1752602382864,0.1608,3096.5,3096.4,3.2295569]
[1752602383016,0.1608,3096.5,3096.4,3.87557049]
[1752602383453,0.7639,3097.5,3096.6,3.22934831]
[1752602383638,0.1608,3097.1,3097.0,3.22893122]
[1752602383810,0.1608,3097.1,3097.0,3.66963122]
[1752602384416,0.1608,3097.1,3096.9,3.22897401]
[1752602384914,0.1608,3097.1,3097.0,3.22893122]
[1752602385120,0.1608,3097.1,3096.9,3.22899212]
[1752602385343,0.1608,3097.1,3097.0,3.22893122]
[1752602385515,0.1608,3097.1,3097.0,3.68883122]
[1752602386562,0.1608,3097.1,3097.0,3.92715843]
[1752602387641,0.1608,3097.1,3096.4,1.2265]
[1752602387830,0.1608,3096.8,3096.5,4.33653801]
[1752602388168,0.7639,3097.5,3097.1,3.22875358]
[1752602388482,0.1608,3097.2,3097.1,3.68872696]
[1752602388648,0.1608,3097.2,3097.1,3.22882696]
[1752602388848,0.002,3097.7,3097.6,3.22830578]
[1752602389058,0.1628,3097.7,3097.5,3.22839776]
[1752602389379,0.1628,3097.7,3097.6,3.22830578]
[1752602389737,0.002,3097.7,3097.6,3.68820578]
[1752602389942,0.002,3097.7,3097.6,4.55368883]
[1752602390267,0.002,3097.7,3097.6,5.79768532]
[1752602390477,0.002,3097.7,3097.6,5.95848532]
[1752602391437,0.002,3097.7,3097.6,8.95848532]
[1752602391637,1e-08,3097.7,3097.6,8.92620227]
[1752602392177,1e-08,3097.7,3097.6,14.00740227]
[1752602392538,1e-08,3097.7,3097.2,0.7675]
[1752602392771,1e-08,3097.7,3097.4,3.22850929]
[1752602392951,1e-08,3097.7,3097.6,3.22830578]
[1752602393285,0.81020001,3097.7,3097.3,3.22853494]
[1752602393578,0.81020001,3097.7,3097.2,3.22870967]
[1752602393885,1e-08,3097.7,3097.6,3.22830578]
[1752602394062,1e-08,3097.7,3097.6,3.68820578]
[1752602394690,1e-08,3097.7,3097.6,3.72048883]
[1752602395255,1e-08,3097.7,3097.6,3.22830578]
[1752602395454,1e-08,3097.7,3097.6,3.68820578]
[1752602396066,1e-08,3097.7,3097.6,3.72048883]
[1752602396277,1e-08,3097.7,3097.6,4.56063999]
[1752602396968,1e-08,3097.7,3097.6,9.79863999]
[1752602397295,1e-08,3097.7,3097.6,9.47620578]
[1752602397502,1e-08,3097.7,3097.6,13.27540578]
[1752602397862,0.002,3098.3,3098.2,4.02688058]
[1752602398202,0.002,3098.3,3098.2,9.26388058]
[1752602398428,0.002,3098.3,3098.2,13.27378058]
[1752602398702,0.002,3098.3,3098.2,3.22768058]
[1752602399261,0.002,3098.3,3098.2,3.68758058]
[1752602399502,0.002,3098.3,3098.2,3.71985738]
[1752602399861,0.002,3098.3,3098.2,3.96256571]
[1752602400262,0.002,3098.3,3098.2,8.73766571]
[1752602400458,0.002,3098.3,3098.2,3.47038891]
[1752602400986,0.002,3098.3,3098.2,3.96256571]
[1752602401310,0.002,3098.3,3098.2,8.70538891]
[1752602401953,0.002,3098.3,3098.2,3.47038891]
[1752602402183,0.1608,3098.4,3097.7,3.22817755]
[1752602402478,0.1608,3098.1,3097.9,3.22795744]
[1752602402803,0.1608,3098.1,3098.0,3.22788896]
[1752602403012,0.1608,3098.1,3097.8,8.46209735]
[1752602403013,0.1608,3098.1,3097.9,8.46094759]
[1752602403512,0.1608,3097.9,3097.4,0.1608]
[1752602403693,0.1608,3097.9,3097.7,3.22815331]
[1752602404002,0.1608,3097.9,3097.4,0.6207]
[1752602404003,0.1608,3097.9,3097.8,3.22809735]
[1752602404371,0.1608,3097.9,3097.7,3.22815769]
[1752602404576,0.82,3098.0,3097.7,3.22815769]
[1752602404986,0.82,3098.0,3097.9,3.22799315]
[1752602405860,5.233,3098.8,3098.1,3.22771733]
[1752602406086,1.695,3098.7,3097.7,3.22813834]
[1752602406284,1.695,3098.7,3098.0,3.22788896]
[1752602406594,0.7701,3098.0,3097.4,0.24547761]
[1752602406799,0.7701,3098.0,3097.5,5.231]
[1752602407124,0.7701,3098.6,3098.5,3.22736808]
[1752602407298,0.7751,3098.9,3098.6,3.22718887]
[1752602407499,0.7751,3098.9,3098.1,8.45873792]
[1752602407500,0.1608,3098.6,3098.5,3.22736808]
[1752602407807,0.1608,3098.6,3098.5,3.68726808]
[1752602408012,0.005,3098.9,3098.8,3.22705563]
[1752602408213,0.1658,3098.9,3098.8,3.22705563]
[1752602408587,0.1658,3098.9,3098.6,3.22726392]
[1752602408788,0.1658,3098.9,3098.4,0.6207]
[1752602409090,0.1658,3098.9,3098.8,3.22705563]
[1752602410123,0.005,3098.9,3098.8,3.68695563]
[1752602410332,0.005,3098.9,3098.8,5.10202618]
[1752602410581,0.005,3098.9,3098.8,5.26282618]
[1752602411797,0.005,3098.9,3098.8,10.49082618]
[1752602412133,0.005,3098.9,3098.5,0.8328]
[1752602412298,0.1658,3098.9,3098.6,8.45525245]
[1752602412619,0.1658,3098.9,3098.6,5.228]
[1752602412819,0.1658,3098.9,3098.6,3.22722003]
[1752602412985,0.1658,3098.9,3098.4,0.03227472]
[1752602413185,3.7067843,3098.9,3098.3,5.227]
[1752602413387,0.1608,3098.3,3098.2,3.22761174]
[1752602413842,0.1608,3098.3,3098.2,8.45461174]
[1752602414008,0.1608,3098.3,3098.1,10.51464273]
[1752602414205,0.7718,3098.4,3098.0,3.22782746]
[1752602414525,0.7718,3098.4,3098.1,5.227]
[1752602414733,0.7718,3098.4,3097.8,3.22805397]
[1752602414935,0.7718,3098.4,3097.9,8.4539796]
[1752602414936,0.1608,3098.1,3097.9,8.4539796]
[1752602415314,0.1608,3098.1,3097.9,5.226]
[1752602415516,3.22789433,3098.0,3097.6,0.001]
[1752602415718,0.8023,3098.0,3097.6,0.001]
[1752602415934,0.1608,3097.8,3097.6,3.67783538]
[1752602416130,0.1608,3097.8,3097.6,0.4496]
[1752602416333,0.1608,3097.8,3097.7,3.22820156]
[1752602416554,0.1608,3097.8,3097.6,3.67786965]
[1752602416714,0.1608,3097.8,3097.7,3.22820156]
[1752602417048,0.452,3098.5,3098.0,3.22785269]
[1752602417049,0.8091,3098.5,3098.0,3.22785269]
[1752602417284,0.40364016,3098.4,3098.1,3.22778329]
[1752602417410,0.1608,3098.0,3097.6,3.22927302]
[1752602417610,0.8091,3097.9,3097.6,0.001]
[1752602417810,0.1608,3097.7,3097.6,0.001]
[1752602418812,0.1608,3097.7,3097.6,3.22930578]
[1752602419015,0.1608,3097.7,3097.6,0.001]
[1752602419565,0.1608,3097.7,3097.6,12.03674273]
[1752602419726,0.1608,3098.4,3098.1,10.51464273]
[1752602419915,0.1608,3098.4,3098.1,14.19096888]
[1752602420114,0.1608,3098.4,3097.8,0.1608]
[1752602420322,0.1608,3098.4,3097.9,3.22792958]
[1752602420528,0.1608,3098.4,3098.0,3.22783094]
[1752602420750,0.1608,3098.4,3098.0,0.48087888]
[1752602420946,0.1608,3098.4,3098.0,3.70872413]
[1752602421116,0.1608,3098.4,3098.1,3.6763772]
[1752602421316,0.1608,3098.4,3098.1,3.67633914]
[1752602421548,0.1608,3098.4,3098.2,3.22765828]
[1752602422217,0.1608,3098.4,3098.3,3.22757641]
[1752602422516,0.1608,3098.6,3098.4,3.22739286]
[1752602422714,0.1608,3098.6,3098.5,3.22736808]
[1752602422931,0.1608,3098.6,3098.4,0.4486]
[1752602423168,0.1608,3098.6,3098.3,3.22757203]
[1752602423363,0.1608,3098.6,3098.3,0.4486]
[1752602423561,0.1608,3098.6,3098.5,3.22736808]
[1752602424165,0.1608,3098.6,3098.5,3.67596808]
[1752602424450,0.1678,3098.9,3098.5,0.03227368]
[1752602424751,0.1608,3098.6,3098.2,3.70850147]
[1752602424955,3.22718665,3098.7,3097.9,0.4486]
[1752602425124,0.1608,3098.4,3098.2,3.22761109]
[1752602425322,0.1608,3098.4,3098.3,3.22757641]
[1752602426225,0.1608,3098.4,3098.2,5.67623939]
[1752602426426,0.1608,3098.4,3098.2,5.22763939]
[1752602426959,0.1608,3098.4,3098.3,3.22757641]
[1752602427548,0.1608,3098.4,3098.2,5.22763402]
[1752602427859,0.1608,3098.4,3098.3,3.22757641]
[1752602428059,0.1608,3098.4,3098.2,5.2276332]